fUSD/lending_fUSD_20251204
["ID","MTS","AMOUNT","RATE_DAILY","PERIOD"]
[396217296,1764828642952,-342.06,0.0002201,2]
[396217297,1764828642963,-150.8,0.00022191,2]
[396217298,1764828642972,-500.0,0.000222,2]
[396217299,1764828642981,-2502.081173,0.00022201,2]
[396217300,1764828642991,-2502.081173,0.00022201,2]
[396217301,1764828643000,-2502.081173,0.00022201,2]
[396217302,1764828643009,-2502.081173,0.00022201,2]
[396217303,1764828643018,-20032.75,0.00022201,2]
[396217304,1764828643027,-87966.54,0.00022201,2]
[396217305,1764828643037,-1014.47,0.000223,7]
[396217306,1764828643046,-161.1,0.00022402,2]
[396217307,1764828643056,-1000.0,0.00022497,2]
[396217308,1764828643065,-1604.0,0.00022528,2]
[396217310,1764828643074,-610.0,0.00022528,2]
[396217311,1764828643083,-1322.0,0.00022528,2]
[396217312,1764828643093,-614.0,0.00022528,2]
[396217313,1764828643104,-1259.0,0.00022528,2]
[396217315,1764828643113,-909.0,0.00022528,2]
[396217316,1764828643122,-1194.0,0.00022528,2]
[396217317,1764828643142,-4706.0,0.00022528,2]
[396217318,1764828643154,-562.0,0.00022528,2]
[396217319,1764828643163,-253.0,0.00022528,2]
[396217320,1764828643173,-6510.0,0.00022528,2]
[396217321,1764828643182,-250.318239,0.00022562,2]
[396217322,1764828643192,-250.318239,0.00022562,2]
[396217323,1764828643201,-250.318239,0.00022562,2]
[396217324,1764828643211,-250.318239,0.00022562,2]
[396217325,1764828643221,-173.24,0.00022565,2]
[396217326,1764828643230,-166.66,0.00022909,2]
[396217327,1764828643240,-400.0,0.00023,2]
[396217328,1764828643249,-1370.1,0.00023134,2]
[396217329,1764828643259,-276.38,0.00023284,2]
[396217330,1764828643269,-161.1,0.00023335,2]
[396217331,1764828643279,-150.8,0.00023457,2]
[396217332,1764828643289,-13061.05780021,0.00023467,2]
[396217333,1764828643299,-4326.15787132,0.00023467,2]
[396217334,1764828643308,-166.66,0.00023665,2]
[396217335,1764828643318,-1000.0,0.00024,2]
[396217336,1764828643327,-500.0,0.00024167,2]
[396217337,1764828643337,-161.1,0.00024268,2]
[396217338,1764828643347,-2000.0,0.000244,2]
[396217339,1764828643357,-166.66,0.00024422,2]
[396217340,1764828643367,-150.0,0.0002445,2]
[396217341,1764828643378,-150.0,0.0002445,2]
[396217342,1764828643387,-504.78717138,0.00024463,2]
[396217343,1764828643396,-376.5780723,0.00024533,2]
[396217344,1764828643406,-584.75,0.00024619,2]
[396217345,1764828643414,-1000.0,0.00024658,2]
[396217346,1764828643423,-277.02,0.00024658,2]
[396217347,1764828643433,-1000.0,0.00024747,2]
[396217348,1764828643443,-508.05428679,0.00024899,2]
[396217349,1764828643453,-69340.27290515,0.00025,2]
[396217350,1764828643462,-2502.081173,0.00025,7]
[396217351,1764828643474,-2502.081173,0.00025,7]
[396217352,1764828643486,-2502.081173,0.00025,7]
[396217353,1764828643501,-2502.081173,0.00025,7]
[396217354,1764828643512,-1014.47,0.000251,7]
[396217355,1764828643525,-150.8,0.00025143,2]
[396217356,1764828643536,-13061.05780021,0.00025153,2]
[396217357,1764828643549,-4326.15787132,0.00025153,2]
[396217358,1764828643561,-166.66,0.00025178,2]
[396217359,1764828643573,-500.0,0.00025201,2]
[396217360,1764828643584,-161.1,0.00025202,2]
[396217361,1764828643596,-6456.02156691,0.00025367,2]
[396217362,1764828643610,-1604.0,0.00025528,2]
[396217363,1764828643621,-610.0,0.00025528,2]
[396217365,1764828643631,-1006.725,0.00025528,2]
[396217366,1764828643641,-614.0,0.00025528,2]
[396217367,1764828643653,-1259.0,0.00025528,2]
[396217368,1764828643662,-909.0,0.00025528,2]
[396217369,1764828643672,-1194.0,0.00025528,2]
[396217370,1764828643683,-4706.0,0.00025528,2]
[396217371,1764828643694,-562.0,0.00025528,2]
[396217372,1764828643705,-1000.0,0.000256,2]
[396217373,1764828643716,-166.66,0.00025934,2]
[396217374,1764828643726,-1006.0,0.000264,2]
[396217375,1764828643737,-500.0,0.00026503,7]
[396217376,1764828643748,-10000.0,0.00026645,2]
[396217377,1764828643759,-528.39,0.00026676,2]
[396217378,1764828643769,-166.66,0.0002669,2]
[396217379,1764828643779,-486.72,0.00026712,2]
[396217380,1764828643790,-13061.05780021,0.0002684,2]
[396217381,1764828643801,-4326.15787132,0.0002684,2]
[396217382,1764828643812,-250.318239,0.00026843,7]
[396217383,1764828643822,-250.318239,0.00026843,7]
[396217384,1764828643832,-250.318239,0.00026843,7]
[396217385,1764828643849,-250.318239,0.00026843,7]
[396217386,1764828643859,-1000.0,0.00026997,2]
[396217387,1764828643870,-150.0,0.00027369,2]
[396217388,1764828643881,-6399.97587046,0.00027379,2]
[396217389,1764828643892,-300.0,0.00027397,2]
[396217390,1764828643902,-277.02,0.00027397,2]
[396217391,1764828643913,-1435.71,0.00027397,2]
[396217392,1764828643923,-209.94573,0.00027397,7]
[396217393,1764828643934,-209.94573,0.00027397,7]
[396217394,1764828643946,-209.94573,0.00027397,7]
[396217395,1764828643956,-209.94573,0.00027397,7]
[396217396,1764828643968,-209.94573,0.00027397,7]
[396217397,1764828643978,-209.94573,0.00027397,7]
[396217398,1764828643988,-209.94573,0.00027397,7]
[396217399,1764828643999,-209.94573,0.00027397,7]
[396217400,1764828644010,-209.94573,0.00027397,7]
[396217401,1764828644020,-209.94573,0.00027397,7]
[396217402,1764828644030,-209.94573,0.00027397,7]
[396217403,1764828644040,-209.94573,0.00027397,7]
[396217404,1764828644051,-209.94573,0.00027397,7]
[396217405,1764828644061,-209.94573,0.00027397,7]
[396217406,1764828644072,-209.94573,0.00027397,7]
[396217407,1764828644082,-209.94573,0.00027397,7]
[396217408,1764828644092,-150.0,0.0002745,2]
[396217409,1764828644101,-4043.18,0.00027677,2]
[396217410,1764828644111,-1014.47,0.000277,7]
[396217411,1764828644121,-500.0,0.00027819,7]
[396217412,1764828644133,-2000.0,0.000281,2]
[396217413,1764828644145,-376.5780723,0.0002835,2]
[396217414,1764828644156,-150.8,0.00028453,2]
[396217415,1764828644167,-10000.0,0.00028463,7]
[396217416,1764828644178,-13061.05780021,0.00028527,2]
[396217417,1764828644188,-4326.15787132,0.00028527,2]
[396217418,1764828644204,-1604.0,0.00028528,2]
[396217419,1764828644214,-610.0,0.00028528,2]
[396217420,1764828644225,-909.0,0.00028528,2]
[396217421,1764828644236,-1194.0,0.00028528,2]
[396217422,1764828644247,-562.0,0.00028528,2]
[396217423,1764828644259,-150.66,0.00028767,2]
[396217424,1764828644269,-150.36,0.00028767,2]
[396217425,1764828644280,-177.99,0.00028767,2]
[396217426,1764828644291,-151.29,0.00028767,2]
[396217427,1764828644301,-231.56,0.00028767,2]
[396217428,1764828644312,-1235.03,0.00028767,2]
[396217429,1764828644322,-1214.85,0.00028767,2]
[396217430,1764828644333,-150.0,0.00028767,2]
[396217431,1764828644343,-177.99,0.00028767,2]
[396217432,1764828644355,-150.0,0.00028767,2]
[396217433,1764828644366,-177.75,0.00028767,2]
[396217434,1764828644378,-1214.85,0.00028767,2]
[396217435,1764828644393,-150.0,0.00028767,2]
[396217436,1764828644404,-150.0,0.00028767,2]
[396217437,1764828644415,-628.35238982,0.00028997,2]
[396217438,1764828644426,-151.23726078,0.00028997,2]
[396217439,1764828644437,-202.28651857,0.00028997,2]
[396217440,1764828644448,-311.1,0.00028997,2]
[396217441,1764828644458,-300.0,0.00028997,2]
[396217442,1764828644469,-333.73483943,0.00029152,2]
[396217443,1764828644480,-2502.081173,0.00029545,7]
[396217444,1764828644490,-2502.081173,0.00029545,7]
[396217445,1764828644502,-2502.081173,0.00029545,7]
[396217446,1764828644514,-2502.081168,0.00029545,7]
[396217447,1764828644525,-1214.85,0.00029589,2]
[396217448,1764828644535,-150.0,0.00029589,2]
[396217449,1764828644546,-150.0,0.00029589,2]
[396217450,1764828644557,-1214.85,0.00029589,2]
[396217451,1764828644567,-1014.47,0.000296,7]
[396217452,1764828644583,-276.37385087,0.0002977,2]
[396217453,1764828644593,-1192.60210288,0.0002998,2]
[396217454,1764828644604,-1192.60210288,0.0002998,2]
[396217455,1764828644614,-1192.60210288,0.0002998,2]
[396217456,1764828644629,-1011.0,0.0003,8]
[396217457,1764828644640,-277.02,0.00030137,2]
[396217458,1764828644650,-13061.05780021,0.00030213,2]
[396217459,1764828644663,-4326.15787132,0.00030213,2]
[396217460,1764828644674,-322.6107,0.00030366,2]
[396217461,1764828644685,-311.1,0.00030366,2]
[396217462,1764828644698,-600.0,0.00030441,7]
[396217463,1764828644708,-150.0,0.0003045,2]
[396217464,1764828644718,-1416.38,0.00030548,2]
[396217465,1764828644729,-1018.42737173,0.0003104,2]
[396217466,1764828644740,-7855.86466596,0.00031112,2]
[396217467,1764828644751,-206.70401398,0.00031486,2]
[396217468,1764828644762,-909.0,0.00031528,2]
[396217469,1764828644774,-1194.0,0.00031528,2]
[396217470,1764828644786,-531.494,0.00031528,2]
[396217471,1764828644796,-514.29759903,0.00031578,7]
[396217472,1764828644806,-334.5472959,0.00031735,2]
[396217473,1764828644816,-322.6107,0.00031735,2]
[396217474,1764828644827,-2000.0,0.000318,2]
[396217475,1764828644840,-13061.05780021,0.000319,2]
[396217476,1764828644854,-408.75646624,0.000319,2]
[396217477,1764828644866,-4326.15787132,0.000319,2]
[396217478,1764828644877,-203.49110058,0.000319,2]
[396217479,1764828644890,-41264.22470351,0.00032,2]
[396217480,1764828645079,1950.0,0.00041738,120]
[396217481,1764828645099,-1072.39884777,0.00032,2]
[396217482,1764828645113,-2786.1885218,0.00032,2]
[396217483,1764828645170,151.0,0.00041738,120]
[396217484,1764828645204,500.0,0.00041738,120]
[396217485,1764828645235,250.0,0.00041738,120]
[396217486,1764828645280,500.0,0.00041738,120]
[396217487,1764828645373,1950.0,0.00041738,120]
[396217488,1764828645476,151.0,0.00041738,120]
[396217489,1764828645556,500.0,0.00041738,120]
[396217490,1764828645590,500.0,0.00041738,120]
[396217491,1764828645651,1950.0,0.00041738,120]
[396217493,1764828646271,-150.0,0.00016973,2]
[396217494,1764828646282,-150.0,0.00016973,2]
[396217495,1764828646292,-229.01796207,0.00016985,2]
[396217498,1764828646622,-270.98203793,0.00016985,2]
[396217499,1764828646632,-62.05551648,0.00016985,2]
[396217500,1764828646655,-437.94448352,0.00016985,2]
[396217501,1764828646664,-62.05551648,0.00016985,2]
[396217504,1764828646917,-473.0,0.00039793,14]
[396217505,1764828646945,-63332.75074592,0.000399,120]
[396217506,1764828646972,-3936194.24925408,0.000399,120]
[396217507,1764828647112,-437.94448352,0.00016985,2]
[396217508,1764828647123,-500.0,0.00016985,2]
[396217509,1764828647132,-479.14137676,0.00016985,2]
[396217510,1764828647141,-151.0,0.00016999,2]
[396217511,1764828647150,-201.44591919,0.0001711,2]
[396217512,1764828647160,-240.17766157,0.00017521,2]
[396217513,1764828647171,-128.29890558,0.00018545,2]
[396217514,1764828647184,-371.70109442,0.00018545,2]
[396217515,1764828647193,-460.53610149,0.00018546,2]
[396217516,1764828647228,-39.46389851,0.00018546,2]
[396217517,1764828647237,-236.42081473,0.00018547,2]
[396217518,1764828647249,-263.57918527,0.00018547,2]
[396217519,1764828647260,-500.0,0.00018548,2]
[396217520,1764828647271,-500.0,0.00018549,2]
[396217521,1764828647279,-500.0,0.0001855,2]
[396217522,1764828647288,-500.0,0.00018551,2]
[396217523,1764828647299,-500.0,0.00018552,2]
[396217524,1764828647309,-500.0,0.00018553,2]
[396217525,1764828647320,-500.0,0.00018554,2]
[396217526,1764828647331,-500.0,0.00018555,2]
[396217527,1764828647341,-500.0,0.00018556,2]
[396217528,1764828647351,-500.0,0.00018557,2]
[396217529,1764828647360,-500.0,0.00018558,2]
[396217530,1764828647370,-500.0,0.00018559,2]
[396217531,1764828647381,-500.0,0.0001856,2]
[396217532,1764828647392,-500.0,0.00018561,2]
[396217533,1764828647401,-500.0,0.00018562,2]
[396217534,1764828647411,-500.0,0.00018563,2]
[396217535,1764828647421,-500.0,0.00018564,2]
[396217536,1764828647430,-500.0,0.00024658,2]
[396217537,1764828647439,-500.0,0.00024658,2]
[396217538,1764828647449,-500.0,0.00024658,2]
[396217539,1764828647459,-500.0,0.00024658,2]
[396217540,1764828647469,-500.0,0.00024658,2]
[396217541,1764828647478,-500.0,0.00024658,2]
[396217542,1764828647487,-500.0,0.00024658,2]
[396217543,1764828647497,-179.76367679,0.00024658,2]
[396217544,1764828647508,-500.0,0.00024658,2]
[396217545,1764828647517,-500.0,0.00024658,2]
[396217546,1764828647527,-500.0,0.00024658,2]
[396217547,1764828647537,-500.0,0.00024658,2]
[396217548,1764828647546,-500.0,0.00024658,2]
[396217549,1764828647556,-500.0,0.00024658,2]
[396217550,1764828647566,-500.0,0.00024658,2]
[396217551,1764828647575,-500.0,0.00024658,2]
[396217552,1764828647585,-500.0,0.00024658,2]
[396217553,1764828647594,-500.0,0.00024658,2]
[396217554,1764828647604,-500.0,0.00024658,2]
[396217555,1764828647615,-500.0,0.00024658,2]
[396217556,1764828647624,-500.0,0.00024658,2]
[396217557,1764828647633,-500.0,0.00024658,2]
[396217558,1764828647642,-500.0,0.00024658,2]
[396217559,1764828647653,-500.0,0.00024658,2]
[396217560,1764828647663,-500.0,0.00024658,2]
[396217561,1764828647672,-180.97491931,0.000319,2]
[396217562,1764828647681,-34230.48110634,0.00032,2]
[396217563,1764828647719,-260.63,0.00032,2]
[396217564,1764828649977,-63805.75074592,0.000399,120]
[396217565,1764828650002,-151.0,0.0004,14]
[396217566,1764828650027,-1716.0,0.0004,120]
[396217567,1764828650053,-552.0,0.0004,120]
[396217568,1764828650080,-200.0,0.0004,120]
[396217569,1764828650107,-5039.68579711,0.0004,10]
[396217570,1764828650133,-547.93328273,0.0004,120]
[396217571,1764828650158,-9593.23523917,0.0004,120]
[396217572,1764828650183,-229.44337936,0.0004,120]
[396217573,1764828650208,-982.08485567,0.0004,30]
[396217574,1764828650232,-150434.85,0.0004,30]
[396217575,1764828650256,-1000.0,0.0004,120]
[396217576,1764828650281,-840.0,0.0004,30]
[396217577,1764828650305,-1729.56360543,0.0004,120]
[396217578,1764828650329,-165.44988999,0.0004,10]
[396217579,1764828650353,-12500.0,0.0004,120]
[396217580,1764828650381,-12500.0,0.0004,120]
[396217581,1764828650405,-12154.83,0.0004,120]
[396217582,1764828650430,-197.34,0.0004,120]
[396217583,1764828650459,-205.8,0.0004,120]
[396217584,1764828650484,-645.19,0.0004,120]
[396217585,1764828650508,-473.0,0.00040067,14]
[396217586,1764828650532,-500.0,0.00040108,14]
[396217587,1764828650556,-500.0,0.00040108,14]
[396217588,1764828650581,-500.0,0.00040137,30]
[396217589,1764828650606,-500.0,0.00040137,30]
[396217590,1764828650635,-500.0,0.000402,30]
[396217591,1764828650660,-500.0,0.000402,30]
[396217592,1764828650684,-500.0,0.000403,30]
[396217593,1764828650856,-473.0,0.00040341,14]
[396217594,1764828650882,-12500.0,0.00040375,120]
[396217595,1764828650907,-12500.0,0.00040375,120]
[396217596,1764828650932,-500.0,0.00040411,30]
[396217597,1764828650957,-500.0,0.00040411,30]
[396217598,1764828650984,-856.0,0.00040513,30]
[396217599,1764828651011,-230.36354237,0.00040555,120]
[396217600,1764828651035,-500.0,0.0004059,61]
[396217601,1764828651061,-473.0,0.00040615,14]
[396217602,1764828651087,-500.0,0.00040685,30]
[396217603,1764828651112,-835.2,0.00040685,30]
[396217604,1764828651137,-2000.0,0.000407,30]
[396217605,1764828651164,-12500.0,0.0004075,120]
[396217606,1764828651190,-12500.0,0.0004075,120]
[396217607,1764828651215,-10000.0,0.000408,120]
[396217608,1764828651240,-413.75,0.000408,14]
[396217609,1764828651266,-300.041009,0.00040845,103]
[396217610,1764828651292,-999.999999,0.00040888,120]
[396217611,1764828651320,-473.0,0.00040889,14]
[396217612,1764828651344,-856.0,0.00040931,30]
[396217613,1764828651369,-500.0,0.00040959,30]
[396217614,1764828651394,-354.01839852,0.0004098,120]
[396217615,1764828651419,-500.0,0.0004099,60]
[396217616,1764828651444,-1000.0,0.00040999,120]
[396217617,1764828651468,-1000.0,0.00041,120]
[396217618,1764828651492,-10000.0,0.00041,120]
[396217619,1764828651516,-179.22,0.00041,14]
[396217620,1764828651539,-595.17730768,0.00041,30]
[396217621,1764828651564,-1267.82,0.00041,30]
[396217622,1764828651589,-181.5126248,0.00041,120]
[396217623,1764828651616,-1027.16174184,0.00041,120]
[396217624,1764828651641,-152.39046046,0.00041,120]
[396217625,1764828651667,-1593.49211418,0.00041,120]
[396217626,1764828651693,-300.0,0.00041068,22]
[396217627,1764828651719,-982.65036016,0.00041075,120]
[396217628,1764828651743,-500.0,0.00041095,15]
[396217629,1764828651768,-500.0,0.00041095,15]
[396217630,1764828651792,-500.0,0.00041095,15]
[396217631,1764828651816,-500.0,0.00041095,15]
[396217632,1764828651841,-500.0,0.00041095,15]
[396217633,1764828651865,-500.0,0.00041095,15]
[396217634,1764828651889,-500.0,0.00041095,15]
[396217635,1764828651913,-500.0,0.00041095,15]
[396217636,1764828651937,-500.0,0.00041095,15]
[396217637,1764828651968,-500.0,0.00041095,15]
[396217638,1764828651991,-500.91886833,0.00041095,120]
[396217639,1764828652015,-501.4705287,0.00041095,120]
[396217640,1764828652040,-500.71427564,0.00041095,120]
[396217641,1764828652065,-500.0,0.00041095,31]
[396217642,1764828652090,-500.0,0.00041095,31]
[396217643,1764828652115,-500.0,0.00041095,31]
[396217644,1764828652139,-500.0,0.00041095,31]
[396217645,1764828652163,-500.0,0.00041095,31]
[396217646,1764828652187,-500.0,0.00041095,31]
[396217647,1764828652211,-500.0,0.00041095,120]
[396217648,1764828652235,-501.40513939,0.00041095,120]
[396217649,1764828652261,-501.0423409,0.00041095,120]
[396217650,1764828652285,-615.44161783,0.00041095,120]
[396217651,1764828652310,-500.0,0.00041095,120]
[396217652,1764828652334,-500.0,0.00041095,120]
[396217653,1764828652358,-500.0,0.00041095,120]
[396217654,1764828652383,-500.0,0.00041095,120]
[396217655,1764828652408,-500.0,0.00041095,120]
[396217656,1764828652432,-500.0,0.00041095,120]
[396217657,1764828652456,-888.63,0.00041095,120]
[396217658,1764828652480,-500.0,0.00041095,120]
[396217659,1764828652504,-888.63,0.00041095,120]
[396217660,1764828652554,-500.0,0.00041095,120]
[396217661,1764828652579,-500.0,0.00041095,120]
[396217662,1764828652605,-888.63,0.00041095,120]
[396217663,1764828652635,-888.63,0.00041095,120]
[396217664,1764828652661,-500.0,0.00041095,120]
[396217665,1764828652685,-888.63,0.00041095,120]
[396217666,1764828652712,-500.0,0.00041095,120]
[396217667,1764828652737,-888.63,0.00041095,120]
[396217668,1764828652762,-212.77049653,0.00041095,120]
[396217669,1764828652786,-888.63,0.00041095,120]
[396217670,1764828652810,-888.63,0.00041095,120]
[396217671,1764828652834,-888.63,0.00041095,120]
[396217672,1764828652859,-888.63,0.00041095,120]
[396217673,1764828652884,-888.63,0.00041095,120]
[396217674,1764828652909,-888.63,0.00041095,120]
[396217675,1764828652933,-888.63,0.00041095,120]
[396217676,1764828652957,-888.63,0.00041095,120]
[396217677,1764828652981,-888.63,0.00041095,120]
[396217678,1764828653006,-888.63,0.00041095,120]
[396217679,1764828653030,-888.63,0.00041095,120]
[396217680,1764828653055,-888.63,0.00041095,120]
[396217681,1764828653080,-888.63,0.00041095,120]
[396217682,1764828653105,-888.63,0.00041095,120]
[396217683,1764828653131,-888.63,0.00041095,120]
[396217684,1764828653156,-888.63,0.00041095,120]
[396217685,1764828653182,-888.63,0.00041095,120]
[396217686,1764828653207,-888.68465839,0.00041095,120]
[396217687,1764828653232,-500.0,0.00041095,120]
[396217688,1764828653259,-501.61752576,0.00041095,120]
[396217689,1764828653284,-500.0,0.00041095,120]
[396217690,1764828653308,-500.0,0.00041095,120]
[396217691,1764828653334,-500.6699593,0.00041095,120]
[396217692,1764828653361,-500.0,0.00041095,120]
[396217693,1764828653387,-500.0,0.00041095,120]
[396217694,1764828653413,-500.0,0.00041095,120]
[396217695,1764828653439,-500.0,0.00041095,120]
[396217696,1764828653465,-500.0,0.00041095,120]
[396217697,1764828653490,-402.56510902,0.00041095,120]
[396217698,1764828653516,-500.0,0.00041095,120]
[396217699,1764828653541,-500.0,0.00041095,120]
[396217700,1764828653566,-500.0,0.00041095,120]
[396217701,1764828653592,-500.0,0.00041095,120]
[396217702,1764828653621,-500.0,0.00041095,120]
[396217703,1764828653647,-500.0,0.00041095,120]
[396217704,1764828653674,-500.0,0.00041095,120]
[396217705,1764828653700,-500.0,0.00041095,120]
[396217706,1764828653728,-500.0,0.00041095,120]
[396217707,1764828653753,-500.0,0.00041095,120]
[396217708,1764828653779,-500.0,0.00041095,120]
[396217709,1764828653809,-500.0,0.00041095,120]
[396217710,1764828653834,-500.0,0.00041095,120]
[396217711,1764828653860,-500.0,0.00041095,120]
[396217712,1764828653886,-471.56637803,0.00041095,120]
[396217713,1764828653915,-500.0,0.00041095,120]
[396217714,1764828653942,-324.71162868,0.00041095,120]
[396217715,1764828653968,-502.49148892,0.00041095,120]
[396217716,1764828653993,-500.0,0.00041095,120]
[396217717,1764828654018,-500.0,0.00041095,120]
[396217718,1764828654043,-228.63196024,0.00041095,120]
[396217719,1764828654070,-500.0,0.00041095,120]
[396217720,1764828654096,-500.0,0.00041095,120]
[396217721,1764828654123,-500.0,0.00041095,120]
[396217722,1764828654150,-500.0,0.00041095,120]
[396217723,1764828654176,-500.0,0.00041095,120]
[396217724,1764828654202,-500.0,0.00041095,120]
[396217725,1764828654227,-500.0,0.00041095,120]
[396217726,1764828654252,-500.0,0.00041095,120]
[396217727,1764828654277,-500.0,0.00041095,120]
[396217728,1764828654302,-575.47958162,0.00041095,120]
[396217729,1764828654328,-557.01398394,0.00041095,120]
[396217730,1764828654352,-563.40502449,0.00041095,120]
[396217731,1764828654378,-500.0,0.00041095,120]
[396217732,1764828654402,-500.0,0.00041095,120]
[396217733,1764828654428,-269.6957605,0.00041095,120]
[396217734,1764828654453,-588.2825478,0.00041095,120]
[396217735,1764828654477,-500.0,0.00041095,120]
[396217736,1764828654502,-296.27308912,0.00041095,120]
[396217737,1764828654526,-362.72981926,0.00041095,120]
[396217738,1764828654550,-628.407641,0.00041095,120]
[396217739,1764828654574,-504.78633593,0.00041095,120]
[396217740,1764828654599,-586.0589515,0.00041095,120]
[396217741,1764828654625,-500.0,0.00041095,120]
[396217742,1764828654649,-500.0,0.00041095,120]
[396217743,1764828654676,-500.0,0.00041095,120]
[396217744,1764828654700,-516.90722277,0.00041095,120]
[396217745,1764828654725,-563.1310575,0.00041095,120]
[396217746,1764828654753,-554.26791402,0.00041095,120]
[396217747,1764828654778,-536.20762372,0.00041095,120]
[396217748,1764828654803,-500.0,0.00041095,120]
[396217749,1764828654829,-500.0,0.00041095,120]
[396217750,1764828654855,-504.80862966,0.00041095,120]
[396217751,1764828654881,-500.0,0.00041095,120]
[396217752,1764828654906,-529.65045913,0.00041095,120]
[396217753,1764828654931,-500.0,0.00041095,120]
[396217754,1764828654955,-500.0,0.00041095,120]
[396217755,1764828654980,-290.48962265,0.00041095,120]
[396217756,1764828655093,-500.0,0.00041095,120]
[396217757,1764828655119,-158.24817225,0.00041095,120]
[396217758,1764828655144,-590.0,0.00041095,120]
[396217759,1764828655169,-500.0,0.00041095,120]
[396217760,1764828655193,-500.0,0.00041095,120]
[396217761,1764828655218,-395.2244109,0.00041095,120]
[396217762,1764828655243,-500.0,0.00041095,120]
[396217763,1764828655266,-307.25564155,0.00041095,120]
[396217764,1764828655291,-537.73914049,0.00041095,120]
[396217765,1764828655316,-501.21979341,0.00041095,120]
[396217766,1764828655340,-500.0,0.00041095,120]
[396217767,1764828655365,-505.01214488,0.00041095,120]
[396217768,1764828655390,-710.75,0.00041095,120]
[396217769,1764828655419,-710.75,0.00041095,120]
[396217770,1764828655443,-710.75,0.00041095,120]
[396217771,1764828655468,-710.75,0.00041095,120]
[396217772,1764828655492,-710.75,0.00041095,120]
[396217773,1764828655518,-710.75,0.00041095,120]
[396217774,1764828655542,-500.99096944,0.00041095,120]
[396217775,1764828655568,-710.75,0.00041095,120]
[396217776,1764828655593,-710.75,0.00041095,120]
[396217777,1764828655621,-710.75,0.00041095,120]
[396217778,1764828655647,-710.75,0.00041095,120]
[396217779,1764828655675,-504.88553185,0.00041095,120]
[396217780,1764828655701,-710.75,0.00041095,120]
[396217781,1764828655730,-501.44773845,0.00041095,120]
[396217782,1764828655755,-710.75,0.00041095,120]
[396217783,1764828655781,-710.75,0.00041095,120]
[396217784,1764828655807,-710.75,0.00041095,120]
[396217785,1764828655833,-710.75,0.00041095,120]
[396217786,1764828655859,-533.17035069,0.00041095,120]
[396217787,1764828655885,-710.75,0.00041095,120]
[396217788,1764828655910,-710.75,0.00041095,120]
[396217789,1764828655936,-710.75,0.00041095,120]
[396217790,1764828655962,-710.75,0.00041095,120]
[396217791,1764828655987,-506.24766157,0.00041095,120]
[396217792,1764828656013,-710.75,0.00041095,120]
[396217793,1764828656038,-521.05452698,0.00041095,120]
[396217794,1764828656063,-710.75,0.00041095,120]
[396217795,1764828656089,-710.75,0.00041095,120]
[396217796,1764828656115,-710.75,0.00041095,120]
[396217797,1764828656140,-710.90616691,0.00041095,120]
[396217798,1764828656165,-500.0,0.00041095,120]
[396217799,1764828656191,-314.47320183,0.00041095,120]
[396217800,1764828656216,-500.0,0.00041095,120]
[396217801,1764828656244,-500.0,0.00041095,120]
[396217802,1764828656272,-504.98458643,0.00041095,120]
[396217803,1764828656298,-500.0,0.00041095,120]